bitfinex-derivatives/quotes_ETHF0:USTF0_20250114
["timestamp","ask_amount","ask_price","bid_price","bid_amount"]
[1736847395529,0.30803,3247.2,3246.8,3.51586]
[1736847395726,3.2078,3247.6,3246.8,3.2078]
[1736847395938,0.30802,3247.4,3246.9,0.30805]
[1736847396130,0.30802,3247.3,3246.9,0.30806]
[1736847396534,3.2078,3247.6,3246.8,3.2078]
[1736847396736,0.30802,3247.4,3246.9,0.30806]
[1736847396938,0.30803,3247.2,3246.8,3.51586]
[1736847397140,0.30803,3247.2,3246.8,3.2078]
[1736847397333,3.2078,3247.6,3246.8,3.2078]
[1736847397639,0.30806,3246.9,3246.8,3.2078]
[1736847398033,3.2078,3247.2,3246.3,0.30811]
[1736847398234,3.51583,3247.2,3246.4,3.2078]
[1736847398433,0.30806,3246.9,3246.8,3.2078]
[1736847398635,0.30805,3247.1,3246.8,3.2078]
[1736847399131,1.2462,3248.2,3246.8,8.2078]
[1736847399331,3.2078,3248.8,3247.7,6.56723879]
[1736847399536,0.30789,3248.7,3248.1,0.30794]
[1736847399739,3.51568,3248.8,3248.3,0.30792]
[1736847399937,3.2078,3248.8,3248.1,3.2078]
[1736847400235,3.51568,3248.8,3248.3,0.30792]
[1736847400441,3.2078,3248.8,3248.1,3.2078]
[1736847400833,0.30795,3248.1,3247.6,44.31579]
[1736847401135,0.30798,3247.7,3247.6,44.0078]
[1736847401338,0.30798,3247.7,3247.6,40.8]
[1736847401532,3.2078,3248.4,3247.6,40.8]
[1736847401832,0.30797,3247.9,3247.6,40.8]
[1736847402336,3.2078,3248.4,3247.6,40.8]
[1736847402538,0.30797,3247.9,3247.6,40.8]
[1736847402933,3.2078,3248.4,3247.6,40.8]
[1736847403637,3.2078,3248.0,3247.1,3.2078]
[1736847403836,0.30797,3247.8,3247.3,0.30802]
[1736847404039,3.2078,3248.0,3247.1,3.2078]
[1736847404242,3.2078,3248.0,3247.4,40.8]
[1736847404933,0.30796,3247.9,3247.4,41.10801]
[1736847405139,3.51576,3248.0,3247.5,0.308]
[1736847405330,3.2078,3248.0,3247.4,40.8]
[1736847405531,0.30799,3247.7,3247.4,40.8]
[1736847405732,0.30799,3247.6,3247.4,40.8]
[1736847405933,0.30799,3247.7,3247.4,40.8]
[1736847406536,3.2078,3248.0,3247.4,40.8]
[1736847406737,0.30799,3247.7,3247.4,40.8]
[1736847407036,0.308,3247.5,3247.4,40.8]
[1736847407341,0.30799,3247.7,3247.4,40.8]
[1736847407538,2.4003,3247.9,3247.4,41.10801]
[1736847407846,0.30799,3247.7,3247.4,40.8]
[1736847408633,1.1769,3247.9,3247.4,40.8]
[1736847409136,0.308,3247.5,3247.1,3.2078]
[1736847409344,0.308,3247.5,3247.1,3.51583]
[1736847409636,0.308,3247.5,3247.4,40.8]
[1736847411439,9.65224772,3247.5,3247.4,40.3]
[1736847411643,9.65224772,3247.5,3246.1,0.30813]
[1736847411644,0.30812,3246.2,3246.1,3.2078]
[1736847412039,0.77019,3246.8,3246.1,3.2078]
[1736847412243,0.30811,3246.4,3246.1,3.2078]
[1736847412437,0.30808,3246.7,3246.3,40.8]
[1736847412632,0.7701,3247.2,3246.3,40.8]
[1736847412838,0.30808,3246.7,3246.3,41.10811]
[1736847413033,0.30804,3247.1,3246.3,40.8]
[1736847413238,0.30806,3246.9,3246.5,3.51589]
[1736847413445,3.2078,3247.3,3246.5,3.2078]
[1736847414137,3.2078,3247.3,3246.5,6.12504772]
[1736847414344,0.30799,3247.7,3247.3,0.30801]
[1736847414537,0.30799,3247.7,3247.4,0.30801]
[1736847414841,3.2078,3247.8,3247.3,3.2078]
[1736847415036,3.2078,3247.8,3247.4,0.30801]
[1736847415234,0.30798,3247.7,3247.4,0.30801]
[1736847415432,3.2078,3247.8,3247.5,0.308]
[1736847415637,3.2078,3247.8,3247.5,0.30799]
[1736847415942,3.2078,3247.8,3247.3,3.2078]
[1736847416239,0.308,3247.6,3246.9,2.91724772]
[1736847416438,3.2078,3247.8,3247.2,3.2078]
[1736847416645,0.30799,3247.7,3247.4,0.30801]
[1736847416842,0.308,3247.5,3247.2,3.51582]
[1736847417040,3.2078,3247.8,3247.2,3.2078]
[1736847417342,0.77003,3247.5,3246.8,3.2078]
[1736847417547,0.30806,3246.9,3246.8,3.2078]
[1736847417942,0.30806,3246.9,3246.6,0.30808]
[1736847418148,3.2078,3247.4,3246.5,2.91724772]
[1736847418447,0.30806,3246.9,3246.7,0.30807]
[1736847418643,0.77003,3247.5,3246.8,3.2078]
[1736847418845,0.77003,3247.5,3246.9,0.30805]
[1736847419149,0.30804,3247.1,3246.9,0.30805]
[1736847419643,0.30803,3247.2,3247.0,41.10805]
[1736847419842,0.76999,3247.6,3247.0,40.8]
[1736847420149,0.30804,3247.2,3247.0,41.10805]
[1736847420453,0.30804,3247.1,3247.0,40.8]
[1736847420944,0.30803,3247.2,3247.0,41.10805]
[1736847421150,0.30803,3247.2,3247.0,40.8]
[1736847421644,0.30802,3247.4,3247.1,0.30804]
[1736847421844,3.97776,3247.8,3246.8,3.2078]
[1736847422046,1.43524729,3292.6,3246.4,3.2078]
[1736847422047,0.77015,3247.0,3246.4,3.2078]
[1736847422245,0.7703,3246.3,3245.4,3.2078]
[1736847422548,3.2078,3246.0,3245.4,3.2078]
[1736847422845,3.2078,3246.0,3245.5,0.30819]
[1736847423049,0.30817,3245.8,3245.6,0.30818]
[1736847423251,3.2078,3246.0,3245.7,40.8]
[1736847423455,0.30816,3245.8,3245.7,40.8]
[1736847423648,0.30816,3245.8,3245.7,40.3]
[1736847423848,8.51596,3245.8,3245.7,40.3]
[1736847424047,0.30824,3245.0,3244.9,3.2078]
[1736847424254,0.30824,3245.0,3243.6,1.1951]
[1736847424445,0.30832,3244.2,3243.9,0.30834]
[1736847424747,0.30831,3244.2,3244.1,40.8]
[1736847425149,6.427,3244.2,3243.5,0.002]
[1736847425350,0.30836,3243.8,3243.5,0.002]
[1736847425555,0.30831,3244.3,3243.5,0.002]
[1736847425750,1.48525,3244.9,3244.4,0.30829]
[1736847426056,1.177,3244.9,3244.2,3.2078]
[1736847426245,1.48525,3244.9,3244.8,40.8]
[1736847426748,6.48525,3244.9,3244.8,40.3]
[1736847426954,1.48525,3244.9,3244.8,40.3]
[1736847428056,6.48525,3244.9,3244.8,40.3]
[1736847428248,1.48525,3244.9,3244.8,40.3]
[1736847428447,3.2078,3245.0,3244.8,40.3]
[1736847428657,3.2078,3245.0,3244.9,0.30825]
[1736847428854,3.2078,3245.0,3244.5,1.178]
[1736847429153,3.2078,3245.0,3244.7,0.30826]
[1736847429352,3.2078,3245.0,3244.8,0.30826]
[1736847429553,3.2078,3245.0,3244.8,0.30825]
[1736847429755,3.2078,3245.0,3244.7,0.30826]
[1736847430047,0.30826,3244.8,3244.5,1.178]
[1736847430253,3.51604,3245.0,3244.5,1.48628]
[1736847430457,3.2078,3245.0,3244.5,1.48628]
[1736847430754,0.30829,3244.5,3244.4,3.2078]
[1736847430942,3.2078,3245.0,3244.4,3.2078]
[1736847431144,3.2078,3245.0,3244.6,40.8]
[1736847431352,3.2078,3245.0,3244.7,0.30827]
[1736847431561,3.2078,3245.0,3244.9,0.30825]
[1736847431750,3.2078,3245.0,3244.4,3.2078]
[1736847432249,3.2078,3245.0,3244.9,40.8]
[1736847433352,3.2078,3245.0,3244.9,41.10825]
[1736847433649,3.2078,3245.0,3244.9,40.8]
[1736847434057,3.51604,3245.0,3244.9,40.8]
[1736847434253,3.2078,3245.0,3244.9,40.8]
[1736847434851,0.30823,3245.1,3244.9,40.8]
[1736847435057,0.30824,3245.0,3244.9,40.8]
[1736847435464,3.2078,3245.6,3244.9,40.8]
[1736847435648,0.30824,3245.0,3244.9,40.8]
[1736847436960,0.30824,3245.0,3244.9,40.3]
[1736847437358,3.51603,3245.2,3244.9,40.3]
[1736847437558,0.30824,3245.1,3244.6,0.30827]
[1736847437753,0.30824,3245.1,3244.4,3.2078]
[1736847437754,3.97827,3245.6,3244.7,0.30827]
[1736847437954,3.2078,3245.6,3245.5,40.8]
[1736847438153,3.51598,3245.6,3245.5,40.8]
[1736847438356,0.30818,3245.6,3245.5,40.8]
[1736847438953,3.51598,3245.6,3245.5,40.8]
[1736847440163,1.1926,3246.1,3245.5,40.8]
[1736847440359,0.30816,3245.9,3245.5,41.10819]
[1736847440665,0.30816,3245.9,3245.6,0.30818]
[1736847440859,0.30815,3246.0,3245.6,0.30818]
[1736847441163,1.1926,3246.1,3245.5,40.8]
[1736847441357,6.12784126,3246.7,3245.5,40.8]
[1736847441657,0.30813,3246.2,3245.8,0.30816]
[1736847441854,0.30812,3246.3,3246.0,0.30814]
[1736847442054,7.39304126,3246.7,3245.5,40.8]
[1736847442055,4.473,3246.7,3245.8,3.2078]
[1736847442364,4.473,3246.7,3246.2,3.2078]
[1736847442365,3.2078,3246.7,3246.2,3.2078]
[1736847442870,3.2078,3246.7,3245.9,3.69043126]
[1736847442871,3.2078,3247.2,3246.6,3.2078]
[1736847443161,2.92004126,3247.5,3246.5,3.2078]
[1736847443359,0.30804,3247.1,3246.5,3.2078]
[1736847443563,0.30804,3247.1,3246.8,0.30807]
[1736847443863,0.30804,3247.1,3246.9,40.8]
[1736847444064,3.2078,3247.2,3246.9,40.8]
[1736847444270,0.30805,3247.0,3246.9,40.8]
[1736847445156,5.0,3247.0,3245.4,3.2078]
[1736847445358,0.30815,3246.0,3245.8,3.2078]
[1736847445565,6.12784126,3246.9,3245.8,3.2078]
[1736847445864,0.30811,3246.5,3246.1,0.30813]
[1736847446058,0.30811,3246.5,3245.8,3.2078]
[1736847446259,6.12784126,3246.9,3246.2,40.8]
[1736847446459,0.30811,3246.4,3246.2,40.8]
[1736847446659,0.3081,3246.5,3246.2,40.8]
[1736847446967,6.12784126,3246.9,3246.2,40.8]
[1736847447161,0.3081,3246.5,3246.2,40.8]
[1736847447457,6.12784126,3246.9,3246.2,40.8]
[1736847447665,0.30808,3246.7,3246.4,0.3081]
[1736847447858,3.2078,3246.9,3246.2,40.8]
[1736847448459,3.2078,3246.9,3246.2,41.10812]
[1736847448661,3.2078,3246.9,3246.2,40.8]
[1736847448860,3.2078,3247.4,3246.4,3.2078]
[1736847449061,2.92004126,3247.3,3246.3,1.2021]
[1736847449262,0.30809,3246.6,3246.3,1.2021]
[1736847449463,0.30809,3246.6,3246.3,1.51021]
[1736847449665,2.92004126,3247.3,3246.3,4.4099]
[1736847449866,3.2078,3248.7,3247.3,0.77006]
[1736847450165,0.30786,3249.1,3248.5,0.3079]
[1736847450361,0.30786,3249.1,3247.8,2.92004126]
[1736847450362,3.51565,3249.2,3248.4,3.2078]
[1736847450562,0.30782,3249.4,3248.4,3.2078]
[1736847450764,0.05,3249.7,3249.0,2.92004126]
[1736847450965,2.92004126,3249.4,3248.8,3.2078]
[1736847451266,2.92004126,3248.9,3247.2,3.2078]
[1736847451464,0.30796,3248.0,3247.3,0.30802]
[1736847451664,0.30795,3248.1,3247.4,41.10801]
[1736847451966,0.30783,3249.4,3248.6,0.30789]
[1736847452167,3.2078,3249.5,3248.4,3.2078]
[1736847452369,3.36818831,3249.3,3248.4,3.2078]
[1736847452568,0.30789,3248.7,3248.4,3.2078]
[1736847452773,3.36818831,3249.3,3248.4,3.2078]
[1736847453072,0.30788,3248.8,3248.7,40.8]
[1736847453460,3.51568,3248.8,3248.7,40.8]
[1736847454369,0.30798,3247.7,3247.6,3.2078]
[1736847454561,0.30798,3247.7,3247.2,3.2078]
[1736847454763,3.2078,3247.6,3247.3,40.8]
[1736847454963,0.30801,3247.4,3247.3,40.8]
[1736847455167,3.2078,3247.6,3247.3,40.8]
[1736847455363,0.30801,3247.4,3247.3,40.8]
[1736847455568,3.2078,3247.6,3247.3,40.8]
[1736847455772,3.5158,3247.6,3247.3,40.8]
[1736847456165,3.2078,3247.6,3247.3,40.8]
[1736847457170,0.308,3247.5,3247.3,40.8]
[1736847458367,3.2078,3247.6,3247.3,40.8]
[1736847458368,0.30801,3247.4,3247.3,40.8]
[1736847458569,3.2078,3247.6,3247.3,40.8]
[1736847459170,0.30801,3247.5,3247.3,40.8]
[1736847460379,0.30801,3247.4,3247.3,40.8]
[1736847460869,3.2078,3247.6,3246.8,0.30806]
[1736847461075,0.30802,3247.3,3246.8,0.30806]
[1736847461374,3.5158,3247.6,3247.1,0.30803]
[1736847461574,3.2078,3247.6,3246.7,4.5018]
[1736847461873,3.2078,3247.6,3247.5,40.8]
[1736847462172,3.51579,3247.6,3247.5,40.8]
[1736847462871,8.2078,3247.6,3245.9,1.3187]
[1736847463074,3.2078,3246.6,3245.7,3.2078]
[1736847463372,0.30813,3246.2,3245.7,3.51596]
[1736847463567,3.2078,3246.6,3245.9,0.30815]
[1736847463770,3.2078,3246.6,3246.5,40.8]
[1736847463967,3.51589,3246.6,3246.5,40.8]
[1736847464275,1.2893,3247.4,3246.5,40.8]
[1736847464474,0.30802,3247.3,3246.6,3.2078]
[1736847464778,1.2893,3247.4,3246.6,3.2078]
[1736847464977,0.30805,3247.0,3246.5,41.10809]
[1736847465283,3.2078,3247.1,3246.5,40.8]
[1736847465493,0.30805,3247.0,3246.6,0.30808]
[1736847465798,0.30804,3247.1,3246.7,0.30807]
[1736847466184,1.2893,3247.4,3246.6,3.2078]
[1736847466389,0.30804,3247.1,3246.7,0.30807]
[1736847466697,0.30806,3246.9,3246.6,3.2078]
[1736847466888,3.2078,3247.3,3246.8,0.30806]
[1736847467092,3.2078,3247.3,3246.5,44.0078]
[1736847467297,0.30803,3247.2,3246.8,0.30806]
[1736847467495,0.30803,3247.2,3246.9,0.30806]
[1736847467790,3.2078,3247.3,3246.6,0.77022]
[1736847468194,3.51582,3247.3,3247.0,0.30804]
[1736847468688,3.2078,3247.3,3246.6,0.77022]
[1736847468891,0.30805,3247.1,3246.8,0.30806]
[1736847469191,0.30805,3247.0,3246.8,0.30806]
[1736847469390,0.30805,3247.0,3246.7,0.30807]
[1736847469597,0.30806,3246.9,3246.6,0.30808]
[1736847469795,0.77003,3247.4,3246.8,40.8]
[1736847470093,0.30806,3246.9,3246.8,40.8]
[1736847473100,0.30806,3246.9,3246.8,40.3]
[1736847477603,1.47,3247.1,3245.9,0.30815]
[1736847477910,0.30815,3246.0,3245.7,3.51597]
[1736847478099,0.30814,3246.1,3245.8,0.30815]
[1736847478405,3.2078,3246.5,3245.7,3.2078]
[1736847479104,0.30813,3246.2,3245.9,0.30815]
[1736847479307,0.30812,3246.3,3246.0,0.30814]
[1736847479506,0.30812,3246.3,3246.2,40.8]
[1736847481610,0.30812,3246.3,3246.2,40.3]
[1736847485807,0.30811,3246.4,3246.2,40.3]
[1736847486003,0.30812,3246.3,3246.2,40.3]
[1736847487206,0.30811,3246.4,3246.2,40.3]
[1736847487411,3.2078,3246.5,3246.1,3.51593]
[1736847487611,3.2078,3246.5,3245.7,3.6036]
[1736847487810,0.30812,3246.3,3246.2,40.8]
[1736847489512,0.77016,3246.9,3246.2,41.10812]
[1736847489707,0.30811,3246.4,3246.2,41.10812]
[1736847490011,0.30811,3246.4,3246.2,40.8]
[1736847490207,0.30811,3246.4,3246.2,41.10812]
[1736847490411,1.07821,3246.9,3246.3,0.30811]
[1736847490611,1.07821,3246.9,3246.2,40.8]
[1736847490612,3.2078,3247.7,3246.7,6.12541776]
[1736847490810,3.2078,3247.7,3247.1,3.2078]
[1736847491115,6.12541776,3247.7,3246.8,1.3174]
[1736847491316,0.30806,3246.9,3246.8,1.3174]
[1736847491708,0.30805,3247.0,3246.8,1.62546]
[1736847491910,1.271,3247.6,3246.9,0.30806]
[1736847492111,1.271,3247.6,3247.0,0.30805]
[1736847492312,1.271,3247.6,3247.1,0.30804]
[1736847492507,3.2078,3247.7,3247.3,0.30801]
[1736847492714,3.2078,3247.7,3246.8,1.3174]
[1736847492917,0.308,3247.5,3247.2,0.30802]
[1736847493113,1.2901,3248.1,3247.3,3.2078]
[1736847493417,1.2901,3248.1,3246.8,1.3174]
[1736847493418,3.2078,3248.3,3248.1,0.30794]
[1736847493612,3.2078,3248.3,3248.2,0.30793]
[1736847493812,3.2078,3248.3,3247.8,1.2701]
[1736847494018,0.30794,3248.2,3247.8,1.57807]
[1736847494220,3.2078,3248.3,3248.1,40.8]
[1736847494408,0.30794,3248.2,3248.1,40.8]
[1736847494715,0.05,3248.5,3248.1,40.8]
[1736847494905,0.30793,3248.2,3248.1,40.8]
[1736847495212,0.30793,3248.3,3248.1,40.8]
[1736847495415,0.05,3248.5,3248.1,40.8]
[1736847495611,0.30793,3248.2,3248.1,40.8]
[1736847496012,0.35791,3248.5,3248.2,0.30793]
[1736847496217,0.05,3248.7,3248.4,0.30792]
[1736847496418,0.05,3248.7,3248.4,0.30791]
[1736847496705,0.35789,3248.7,3248.3,0.30792]
[1736847496912,0.05,3248.7,3248.4,0.30791]
[1736847497110,0.05,3248.7,3248.2,3.2078]
[1736847497309,0.35789,3248.7,3248.3,0.30793]
[1736847497618,0.3079,3248.6,3248.2,3.51573]
[1736847497819,0.35789,3248.7,3248.2,3.2078]
[1736847498312,0.05,3248.7,3248.2,3.2078]
[1736847498513,3.2078,3248.6,3248.1,40.8]
[1736847498719,0.30793,3248.2,3248.1,40.8]
[1736847499020,2.91761776,3248.5,3247.8,3.2078]
[1736847499217,0.30796,3247.9,3247.8,3.2078]
[1736847499713,0.30796,3247.9,3247.8,44.0078]
[1736847499913,0.30796,3247.9,3247.8,40.8]
[1736847499914,3.51576,3247.9,3247.8,40.8]
[1736847500114,0.30803,3247.2,3247.1,4.4696]
[1736847500313,0.30803,3247.3,3247.1,4.4696]
[1736847500713,0.76994,3247.8,3247.2,40.8]
[1736847501014,0.30801,3247.4,3247.2,40.8]
[1736847501223,0.30798,3247.7,3247.3,0.30801]
[1736847501411,3.2078,3247.9,3247.2,40.8]
[1736847501609,4.2191108,3247.9,3247.2,40.8]
[1736847501817,0.30802,3247.3,3247.2,40.8]
[1736847503115,0.2413808,3247.9,3247.2,40.8]
[1736847503421,0.30796,3248.0,3247.7,0.30798]
[1736847503621,0.30796,3247.9,3247.7,0.30798]
[1736847503816,0.30795,3248.1,3247.9,0.30796]
[1736847504015,0.30796,3248.0,3247.6,2.91761776]
[1736847504210,0.30796,3248.0,3247.8,0.30797]
[1736847504416,3.45720562,3248.3,3247.9,41.10796]
[1736847504417,0.30795,3248.1,3247.9,41.10796]
[1736847504616,0.30795,3248.0,3247.9,40.8]
[1736847504815,3.2078,3250.4,3247.9,64.46341776]
[1736847505013,0.24940562,3250.2,3250.0,0.30775]
[1736847505322,0.24940562,3250.3,3250.0,0.30776]
[1736847505516,0.24940562,3250.3,3249.7,1.3194]
[1736847505721,0.24940562,3250.3,3249.8,0.30778]
[1736847505912,0.24940562,3250.2,3249.7,1.3194]
[1736847506422,0.24940562,3250.2,3250.0,0.30776]
[1736847506726,0.24940562,3250.2,3249.7,1.3194]
[1736847506914,0.55715562,3250.2,3249.9,0.30777]
[1736847507118,0.24940562,3250.2,3249.7,1.3194]
[1736847507317,0.30776,3250.0,3249.8,0.30778]
[1736847507515,0.24940562,3249.9,3249.2,3.2078]
[1736847507718,0.24940562,3249.6,3249.2,3.2078]
[1736847507920,0.55721562,3249.6,3249.3,0.30783]
[1736847508122,0.55721562,3249.6,3249.2,3.2078]
[1736847508419,0.24940562,3249.6,3249.5,0.30781]
[1736847508616,0.24940562,3249.6,3249.2,3.2078]
[1736847508822,0.24940562,3249.6,3249.5,0.30781]
[1736847509019,0.24940562,3249.6,3249.5,41.10781]
[1736847510419,0.24940562,3249.6,3249.5,40.8]
[1736847510724,0.55720562,3249.6,3249.5,40.8]
[1736847511420,0.30783,3249.3,3249.2,3.2078]
[1736847511624,0.24940562,3249.3,3249.2,3.2078]
[1736847511825,0.55723562,3249.3,3249.2,3.2078]
[1736847512122,0.24940562,3249.3,3248.2,3.2078]
[1736847512319,0.24940562,3248.5,3248.4,0.30792]
[1736847513016,3.2078,3249.4,3248.9,0.30786]
[1736847513216,3.2078,3249.4,3248.8,0.30788]
[1736847513217,0.24940562,3248.9,3248.8,0.30788]
[1736847513519,0.24940562,3249.3,3248.8,2.91761776]
[1736847513714,3.2078,3249.4,3249.3,0.30783]
[1736847513915,0.24940562,3249.3,3249.1,3.2078]
[1736847514116,0.24940562,3249.3,3249.2,0.30784]
[1736847514327,0.24940562,3249.3,3249.2,41.10784]
[1736847515519,1.2795,3250.1,3249.2,48.71761776]
[1736847515716,0.24940562,3250.1,3250.0,0.30776]
[1736847517818,0.30777,3250.0,3249.5,3.2078]
[1736847518022,0.24940562,3249.8,3249.7,0.30779]
[1736847518218,3.2078,3250.5,3249.7,0.30779]
[1736847518417,0.24940562,3249.8,3249.7,0.30779]
[1736847519228,0.24940562,3249.8,3249.6,0.3078]
[1736847519427,0.24940562,3249.6,3249.5,3.51561]
[1736847520828,0.55720562,3249.6,3249.5,3.51561]
[1736847521126,0.24940562,3249.6,3249.5,3.2078]
[1736847521421,0.55720562,3249.6,3249.5,2.7078]
[1736847521721,0.24940562,3249.6,3249.5,3.01561]
[1736847522430,4.4542,3250.2,3249.5,2.7078]
[1736847522622,0.24940562,3249.9,3249.8,0.30778]
[1736847523221,0.24940562,3249.9,3249.8,41.10778]
[1736847523721,0.24940562,3249.9,3249.8,40.8]
[1736847524124,0.24940562,3249.9,3249.8,41.10778]
[1736847525132,0.24940562,3249.9,3249.8,40.8]
[1736847525324,0.24940562,3249.9,3249.8,41.10778]
[1736847528432,3.51551,3250.6,3250.3,0.30773]
[1736847528632,0.24940562,3250.4,3250.3,0.30774]
[1736847529535,3.2078,3250.6,3250.5,0.30772]
[1736847529933,3.2078,3250.6,3250.5,41.10772]
[1736847530131,3.51548,3251.0,3250.8,0.30768]
[1736847530335,3.51548,3251.0,3250.5,40.8]
[1736847530336,0.24940562,3250.7,3250.5,40.8]
[1736847530627,0.30771,3250.6,3250.5,41.10771]
[1736847530826,0.55711562,3250.6,3250.5,41.10771]
[1736847531035,0.55711562,3250.6,3250.5,40.8]
[1736847531933,3.76491562,3250.6,3250.5,40.8]
[1736847535729,3.76491562,3250.6,3250.5,40.3]
[1736847536338,3.76491562,3250.6,3249.5,3.2078]
[1736847536339,0.3078,3249.6,3249.5,3.2078]
[1736847536526,0.24940562,3249.6,3249.5,0.30781]
[1736847536740,0.30777,3250.0,3249.5,40.8]
[1736847536933,0.24940562,3249.8,3249.5,40.8]
[1736847537131,0.24940562,3249.8,3249.7,0.30779]
[1736847538237,0.24940562,3249.8,3249.5,40.8]
[1736847538438,0.24940562,3249.8,3249.7,0.30779]
[1736847538845,0.24940562,3249.8,3249.5,40.8]
[1736847538846,0.30775,3250.2,3250.0,0.30776]
[1736847539033,0.24940562,3250.1,3250.0,0.30776]
[1736847539338,0.24940562,3250.1,3249.9,0.30777]
[1736847539637,3.2078,3250.4,3250.3,0.30774]
[1736847539638,3.2578,3250.4,3250.3,0.30774]
[1736847540229,3.81493562,3250.4,3250.2,0.30774]
[1736847540433,0.24940562,3250.1,3250.0,0.30776]
[1736847540635,0.24940562,3250.1,3248.3,3.083]
[1736847540636,0.24940562,3250.1,3249.4,3.97734]
[1736847540829,0.55716562,3250.1,3249.5,2.11672]
[1736847541038,3.2578,3250.4,3250.0,40.8]
[1736847541242,3.2578,3250.4,3250.3,0.30774]
[1736847541740,3.2578,3250.4,3249.7,3.68708776]
[1736847541741,3.56553,3250.4,3250.2,0.30774]
[1736847541944,0.24940562,3250.3,3249.5,1.3472]
[1736847542133,0.24940562,3250.0,3249.5,1.3472]
[1736847542329,0.24940562,3249.7,3249.3,1.3001]
[1736847542539,0.55721562,3249.5,3249.3,0.30782]
[1736847542843,0.24940562,3249.5,3249.4,3.51562]
[1736847543043,0.55721562,3249.5,3249.4,44.0078]
[1736847543533,0.24940562,3249.5,3249.4,44.31562]
[1736847543738,0.55721562,3249.5,3249.4,44.0078]
[1736847544043,0.55721562,3249.5,3249.4,40.3]
[1736847544434,0.60721562,3249.5,3249.4,40.3]
[1736847544639,0.3079,3248.6,3248.5,3.2078]
[1736847544941,0.55730562,3248.6,3248.5,44.0078]
[1736847545142,0.60730562,3248.6,3248.5,44.0078]
[1736847545329,11.42482338,3248.6,3247.5,3.2078]
[1736847545535,0.55739562,3247.6,3247.5,3.2078]
[1736847546038,0.24940562,3247.6,3247.5,3.5158]
[1736847546434,0.24940562,3247.6,3247.5,3.2078]
[1736847546735,0.24940562,3247.6,3247.0,3.2078]
[1736847547043,0.24940562,3247.4,3247.3,0.30802]
[1736847547239,0.24940562,3247.4,3247.2,0.30802]
[1736847547442,0.24940562,3247.3,3247.0,3.2078]
[1736847548143,3.97779,3247.7,3247.0,3.2078]
[1736847548345,0.24940562,3247.2,3247.0,3.2078]
[1736847548641,0.24940562,3247.1,3247.0,3.51584]
[1736847550042,0.24940562,3247.1,3247.0,3.2078]
[1736847550242,0.55744562,3247.1,3247.0,3.2078]
[1736847551249,0.55744562,3247.1,3247.0,44.0078]
[1736847551546,0.24940562,3247.1,3247.0,44.31585]
[1736847552746,3.2078,3247.7,3247.0,44.31585]
[1736847552747,3.2078,3247.7,3247.0,44.0078]
[1736847552935,0.30802,3247.3,3247.1,0.30803]
[1736847553136,0.55744562,3247.1,3247.0,44.0078]
[1736847553545,3.47506338,3247.1,3247.0,40.8]
[1736847553844,3.52506338,3247.1,3247.0,40.3]
[1736847554050,3.52506338,3247.1,3246.5,0.64779903]
[1736847554051,2.96761776,3247.1,3246.5,0.39839341]
[1736847554355,0.30809,3246.6,3246.5,0.39839341]
[1736847554852,0.30809,3246.6,3246.5,41.19839341]
[1736847556753,3.22569776,3246.7,3246.5,41.19839341]
[1736847556954,0.30808,3246.7,3246.5,41.19839341]
[1736847557154,0.30805,3247.0,3246.6,0.30808]
[1736847557357,1.3407,3247.2,3246.6,3.2078]
[1736847557548,0.05,3247.2,3247.1,0.30804]
[1736847557852,0.05,3247.2,3247.1,40.8]
[1736847558047,0.05,3247.2,3247.1,41.10804]
[1736847558647,0.05,3247.2,3247.1,40.8]
[1736847558848,0.05,3247.2,3247.1,41.10804]
[1736847559057,0.05,3247.2,3247.1,40.8]
[1736847560252,0.35803,3247.2,3247.1,40.8]
[1736847561249,0.35803,3247.2,3247.1,40.3]
[1736847562354,1.76703,3247.2,3247.1,40.3]
[1736847563454,1.76703,3247.2,3247.1,39.8]
[1736847564750,6.76703,3247.2,3247.1,39.8]
[1736847565049,6.76703,3247.2,3247.1,39.3]
[1736847565648,1.76703,3247.2,3247.1,39.3]
[1736847565957,6.76703,3247.2,3247.1,39.3]
[1736847567053,6.76703,3247.2,3247.1,38.8]
[1736847567454,6.459,3247.2,3246.5,0.39839341]
[1736847567653,0.05,3246.5,3245.6,3.2078]
[1736847567949,0.35817,3245.8,3245.7,40.8]
[1736847568857,0.05,3245.8,3245.7,40.8]
[1736847569057,0.35816,3245.8,3245.7,40.8]
[1736847572053,0.35825,3244.9,3244.8,0.24778905]
[1736847572257,3.27586776,3244.9,3244.8,0.24778905]
[1736847572455,0.3083,3244.4,3244.2,3.2078]
[1736847572654,0.35825,3244.9,3244.5,0.30828]
[1736847572849,0.35825,3244.9,3244.8,0.30826]
[1736847572850,0.05,3244.9,3244.8,0.30826]
[1736847573061,0.05,3244.9,3244.8,41.10826]
[1736847573252,0.30823,3245.2,3244.8,46.10825]
[1736847573464,0.30823,3245.2,3244.8,41.10825]
[1736847573757,3.2078,3245.6,3244.8,40.8]
[1736847573960,0.30824,3245.0,3244.8,40.8]
[1736847574462,3.2078,3245.6,3244.8,45.8]
[1736847574758,0.30819,3245.5,3245.1,0.30822]
[1736847574960,0.30821,3245.3,3244.8,40.8]
[1736847575160,0.30821,3245.3,3245.1,0.30822]
[1736847575757,3.2078,3246.6,3245.2,3.2078]